fUSD/lending_fUSD_20250807
["ID","MTS","AMOUNT","RATE_DAILY","PERIOD"]
[377838891,1754572243346,-32.40350615,0.00019967,2]
[377838893,1754572243358,-367.59649385,0.00019967,2]
[377838895,1754572243367,-400.0,0.00019967,2]
[377838897,1754572243377,-151.0,0.00019967,2]
[377838899,1754572243386,-400.0,0.00019967,2]
[377838901,1754572243396,-400.0,0.00019967,2]
[377838903,1754572243406,-400.0,0.00019967,2]
[377838905,1754572243415,-400.0,0.00019967,2]
[377838908,1754572243425,-1221.84,0.00019967,2]
[377838911,1754572243434,-400.0,0.00019967,2]
[377838912,1754572243444,-233.14618128,0.00019967,2]
[377838914,1754572243454,-400.0,0.00019967,2]
[377838916,1754572243463,-400.0,0.00019967,2]
[377838917,1754572243473,-49.77239669,0.00019967,2]
[377838935,1754572246071,-1068.88619485,0.00019568,2]
[377838936,1754572246081,-3359.74,0.00019966,2]
[377838937,1754572246183,-892.51,0.00019966,2]
[377838938,1754572246193,-592.53760331,0.00019967,2]
[377838939,1754572246203,-151.0,0.00019967,2]
[377838940,1754572246212,-151.0,0.00019967,2]
[377838941,1754572246221,-400.0,0.00019967,2]
[377838942,1754572246231,-1027.44,0.00019967,2]
[377838943,1754572246240,-400.0,0.00019967,2]
[377838944,1754572246250,-400.0,0.00019967,2]
[377838945,1754572246259,-400.0,0.00019967,2]
[377838946,1754572246269,-675.88620185,0.00019967,2]
[377838947,1754572246301,-301.19379815,0.00019967,2]
[377838948,1754572246310,-400.0,0.00019967,2]
[377838949,1754572246320,-400.0,0.00019967,2]
[377838950,1754572246330,-988.93,0.00019967,2]
[377838951,1754572246339,-1737.86,0.00019967,2]
[377838952,1754572246349,-735.28,0.00019967,2]
[377838953,1754572246358,-1106.58,0.00019967,2]
[377838954,1754572246367,-151.0,0.00019967,2]
[377838955,1754572246379,-139.08380185,0.00019967,2]
[377838956,1754572246419,-377.33619815,0.00019967,2]
[377838957,1754572246428,-400.0,0.00019967,2]
[377838958,1754572246437,-2919.83,0.00019967,2]
[377838959,1754572246446,-400.0,0.00019967,2]
[377838960,1754572246454,-437.1,0.00019967,2]
[377838961,1754572246463,-1494.75,0.00019967,2]
[377838962,1754572246472,-400.0,0.00019967,2]
[377838963,1754572246481,-154.1461,0.00019967,2]
[377838965,1754572246490,-739.0,0.00019967,2]
[377838967,1754572246500,-154.1461,0.00019967,2]
[377838968,1754572246509,-1226.31,0.00019967,2]
[377838970,1754572246518,-537.38155179,0.00019967,2]
[377838972,1754572246554,-469.3411,0.00019967,2]
[377838973,1754572246565,-803.27734821,0.00019967,2]
[377838974,1754572246575,-20.09374807,0.00019967,2]
[377838975,1754572246587,-649.0,0.00019967,2]
[377838981,1754572485703,175.0,0.00018801,7]
[377838985,1754572523008,400.0,0.00018,3]
[377838988,1754572583480,200.0,0.00028875,120]
[377839004,1754572786781,1050.22356703,0.00028875,120]
[377839005,1754572809450,400.0,0.00030136,120]
[377839006,1754572828177,150.0,0.000175,2]
[377839008,1754572926164,1000.0,0.00018419,4]
[377839012,1754573011898,212.75,0.00013699,2]
[377839013,1754573020818,331.78002574,0.00030137,120]
[377839017,1754573137094,171.13693606,0.00017951,2]
[377839018,1754573137228,-523.0,0.00018419,2]
[377839019,1754573137251,-1000.0,0.0001851,4]
[377839020,1754573137275,-300.0,0.0001851,2]
[377839021,1754573137299,-250.0,0.0001852,2]
[377839022,1754573137321,-300.0,0.0001852,2]
[377839023,1754573137344,-1000.0,0.00018538,4]
[377839024,1754573137367,-250.0,0.00018569,2]
[377839025,1754573137390,-150.0,0.00018572,2]
[377839026,1754573137412,-183.917719,0.00018612,2]
[377839027,1754573137435,-1200.0,0.00018619,2]
[377839028,1754573137458,-10245.33,0.0001862,2]
[377839029,1754573137486,-1271.07,0.00018623,2]
[377839030,1754573137508,-184.48,0.00018628,2]
[377839031,1754573137530,-345.28,0.00018637,2]
[377839032,1754573137551,-1139.8,0.00018639,2]
[377839033,1754573137573,-1000.0,0.00018662,2]
[377839034,1754573137595,-150.0,0.0001868,2]
[377839035,1754573137616,-152.0,0.00018731,3]
[377839036,1754573137639,-157.66,0.00018814,2]
[377839037,1754573137660,-200.0,0.00018821,2]
[377839038,1754573137684,-157.66,0.00018832,2]
[377839039,1754573137706,-438.34,0.00018833,2]
[377839040,1754573137729,-157.66,0.00018849,2]
[377839041,1754573137752,-157.66,0.00018866,2]
[377839042,1754573137775,-157.66,0.00018883,2]
[377839043,1754573137796,-850.0,0.00018883,2]
[377839044,1754573137819,-157.66,0.000189,2]
[377839045,1754573137842,-157.66,0.00018917,2]
[377839046,1754573137864,-157.66,0.00018934,2]
[377839047,1754573137886,-157.66,0.00018951,2]
[377839048,1754573137909,-157.66,0.00018968,2]
[377839049,1754573137930,-416.03518578,0.0001898,2]
[377839050,1754573137952,-277.35679052,0.0001898,2]
[377839051,1754573137973,-160.0,0.0001898,2]
[377839052,1754573137995,-157.66,0.00018985,2]
[377839053,1754573138017,-1000.0,0.00018999,2]
[377839054,1754573138038,-2000.0,0.00019,2]
[377839055,1754573138060,-2000.0,0.00019,2]
[377839056,1754573138082,-2000.0,0.00019,2]
[377839057,1754573138104,-2000.0,0.00019,2]
[377839058,1754573138127,-1029.855,0.00019,2]
[377839059,1754573138149,-157.66,0.00019003,2]
[377839060,1754573138171,-167.78,0.00019083,2]
[377839061,1754573138192,-162.380719,0.00019178,2]
[377839062,1754573138215,-497.01,0.00019188,2]
[377839063,1754573138239,-516.94930885,0.00019667,2]
[377839064,1754573138263,-258.47,0.00019672,2]
[377839065,1754573138284,-1000.0,0.00019679,2]
[377839066,1754573138308,-1033.88,0.0001968,2]
[377839067,1754573138332,-150.0,0.00019706,2]
[377839068,1754573138356,-150.0,0.00019707,2]
[377839069,1754573138382,-150.0,0.00019711,2]
[377839070,1754573138403,-150.0,0.00019714,2]
[377839071,1754573138427,-150.0,0.00019728,2]
[377839072,1754573138451,-150.0,0.00019729,2]
[377839073,1754573138480,-150.0,0.00019735,2]
[377839074,1754573138505,-150.0,0.00019737,2]
[377839075,1754573138529,-150.0,0.00019756,2]
[377839076,1754573138552,-1105.0,0.00019773,2]
[377839077,1754573138575,-150.0,0.00019776,2]
[377839078,1754573138600,-150.0,0.00019778,2]
[377839079,1754573138626,-150.0,0.00019781,2]
[377839080,1754573138651,-150.0,0.00019782,2]
[377839081,1754573138674,-282.56876889,0.00019788,2]
[377839082,1754573138696,-150.0,0.00019789,2]
[377839083,1754573138720,-150.0,0.00019794,2]
[377839084,1754573138743,-150.0,0.00019808,2]
[377839085,1754573138768,-150.0,0.00019809,2]
[377839086,1754573138792,-150.0,0.00019811,2]
[377839087,1754573138816,-150.0,0.00019812,2]
[377839088,1754573138840,-150.0,0.0001982,2]
[377839089,1754573138864,-150.0,0.00019821,2]
[377839090,1754573138889,-150.0,0.00019835,2]
[377839091,1754573138909,-1000.0,0.00019839,2]
[377839092,1754573138932,-150.0,0.00019839,2]
[377839093,1754573138958,-150.0,0.00019846,2]
[377839094,1754573138982,-150.0,0.00019852,2]
[377839095,1754573139006,-150.0,0.00019853,2]
[377839096,1754573139029,-150.0,0.00019859,2]
[377839097,1754573139053,-150.0,0.00019861,2]
[377839098,1754573139077,-150.0,0.00019861,2]
[377839099,1754573139100,-4532.68347208,0.00019866,2]
[377839100,1754573139121,-3315.50442,0.00019866,2]
[377839101,1754573139144,-164.30001578,0.00019866,2]
[377839102,1754573139165,-150.0,0.0001987,2]
[377839103,1754573139187,-184.48,0.0001987,2]
[377839104,1754573139209,-151.07614956,0.00019875,2]
[377839105,1754573139235,-150.0,0.00019875,2]
[377839106,1754573139261,-150.0,0.00019876,2]
[377839107,1754573139283,-151.97041497,0.00019895,2]
[377839108,1754573139309,-500.0,0.00019895,2]
[377839109,1754573139333,-150.0,0.00019899,2]
[377839110,1754573139357,-150.0,0.00019908,2]
[377839111,1754573139468,-150.0,0.00019917,2]
[377839112,1754573139495,-150.0,0.00019932,2]
[377839113,1754573139517,-1105.0,0.00019937,2]
[377839114,1754573139539,-157.767,0.00019938,2]
[377839115,1754573139564,-150.0,0.00019938,2]
[377839116,1754573139586,-1355.435,0.00019939,2]
[377839117,1754573139611,-150.0,0.00019939,2]
[377839118,1754573139635,-420.0,0.0001994,2]
[377839119,1754573139661,-150.0,0.00019944,2]
[377839120,1754573139685,-150.0,0.00019946,2]
[377839121,1754573139707,-1836.69795558,0.00019947,2]
[377839122,1754573139732,-150.0,0.00019947,2]
[377839123,1754573139753,-16113.39048547,0.00019948,2]
[377839124,1754573139777,-150.0,0.00019949,2]
[377839125,1754573139801,-150.0,0.0001995,2]
[377839126,1754573139822,-192.21,0.00019956,2]
[377839127,1754573139845,-3315.50441995,0.00019957,2]
[377839128,1754573139868,-4532.68347205,0.00019957,2]
[377839129,1754573139893,-150.0,0.0001996,2]
[377839130,1754573139919,-383.64660397,0.00019964,2]
[377839131,1754573139941,-514.74241561,0.00019965,2]
[377839132,1754573139963,-1213.96,0.00019965,2]
[377839133,1754573139985,-400.0,0.00019965,2]
[377839134,1754573140007,-400.0,0.00019965,2]
[377839135,1754573140028,-855.32,0.00019965,2]
[377839136,1754573140050,-400.0,0.00019965,2]
[377839137,1754573140071,-651.02,0.00019965,2]
[377839138,1754573140093,-400.0,0.00019965,2]
[377839139,1754573140115,-400.0,0.00019965,2]
[377839140,1754573140138,-400.0,0.00019965,2]
[377839141,1754573140159,-400.0,0.00019965,2]
[377839142,1754573140181,-973.01,0.00019965,2]
[377839143,1754573140203,-1592.92,0.00019965,2]
[377839144,1754573140227,-728.62,0.00019965,2]
[377839145,1754573140249,-789.94,0.00019965,2]
[377839146,1754573140274,-400.0,0.00019965,2]
[377839147,1754573140298,-1033.73,0.00019965,2]
[377839148,1754573140322,-400.0,0.00019965,2]
[377839149,1754573140344,-474.39,0.00019965,2]
[377839150,1754573140367,-1146.67,0.00019965,2]
[377839151,1754573140391,-2419.75,0.00019965,2]
[377839152,1754573140415,-1173.65,0.00019965,2]
[377839153,1754573140438,-480.93,0.00019965,2]
[377839154,1754573140465,-885.72,0.00019965,2]
[377839155,1754573140492,-2030.27,0.00019965,2]
[377839156,1754573140516,-400.0,0.00019965,2]
[377839157,1754573140539,-1336.74,0.00019965,2]
[377839158,1754573140564,-4018.92,0.00019965,2]
[377839159,1754573140586,-1140.75,0.00019965,2]
[377839160,1754573140609,-484.34044737,0.00019965,2]
[377839161,1754573140633,-400.0,0.00019965,2]
[377839162,1754573140657,-768.97,0.00019965,2]
[377839163,1754573140681,-641.96,0.00019965,2]
[377839164,1754573140703,-400.0,0.00019965,2]
[377839165,1754573140725,-1161.28,0.00019965,2]
[377839166,1754573140749,-1490.2,0.00019965,2]
[377839167,1754573140773,-1326.48,0.00019965,2]
[377839168,1754573140796,-1593.79,0.00019965,2]
[377839169,1754573140820,-400.0,0.00019965,2]
[377839170,1754573140844,-3219.76,0.00019965,2]
[377839171,1754573140867,-158.79756472,0.00019965,2]
[377839172,1754573140890,-400.0,0.00019965,2]
[377839173,1754573140913,-1983.31,0.00019965,2]
[377839174,1754573140936,-1610.43,0.00019965,2]
[377839175,1754573140958,-342.16569658,0.00019965,2]
[377839176,1754573140979,-400.0,0.00019965,2]
[377839177,1754573141001,-400.0,0.00019965,2]
[377839178,1754573141024,-400.0,0.00019965,2]
[377839179,1754573141047,-401.28703999,0.00019965,2]
[377839180,1754573141071,-400.0,0.00019965,2]
[377839181,1754573141094,-400.0,0.00019965,2]
[377839182,1754573141118,-1404.91,0.00019965,2]
[377839183,1754573141141,-262.46982236,0.00019965,2]
[377839184,1754573141163,-402.2689563,0.00019965,2]
[377839185,1754573141185,-400.0,0.00019965,2]
[377839186,1754573141207,-400.0,0.00019965,2]
[377839187,1754573141232,-1002.71,0.00019965,2]
[377839188,1754573141254,-401.23881778,0.00019965,2]
[377839189,1754573141277,-1851.53,0.00019965,2]
[377839190,1754573141300,-400.0,0.00019965,2]
[377839191,1754573141321,-292.78709323,0.00019965,2]
[377839192,1754573141343,-1351.3,0.00019965,2]
[377839193,1754573141365,-400.0,0.00019965,2]
[377839194,1754573141387,-1250.19,0.00019965,2]
[377839195,1754573141411,-1808.96,0.00019965,2]
[377839196,1754573141434,-400.0,0.00019965,2]
[377839197,1754573141455,-400.0,0.00019965,2]
[377839198,1754573141479,-400.0,0.00019965,2]
[377839199,1754573141501,-1248.69,0.00019965,2]
[377839200,1754573141523,-400.0,0.00019965,2]
[377839201,1754573141545,-1409.63,0.00019965,2]
[377839202,1754573141566,-400.0,0.00019965,2]
[377839203,1754573141587,-400.0,0.00019965,2]
[377839204,1754573141609,-717.44,0.00019965,2]
[377839205,1754573141631,-1216.47,0.00019965,2]
[377839206,1754573141655,-400.0,0.00019965,2]
[377839207,1754573141677,-400.0,0.00019965,2]
[377839208,1754573141699,-422.26,0.00019965,2]
[377839209,1754573141721,-1755.48,0.00019965,2]
[377839210,1754573141742,-400.0,0.00019965,2]
[377839211,1754573141766,-150.0,0.00019965,2]
[377839212,1754573141788,-575.29,0.00019965,2]
[377839213,1754573141809,-400.0,0.00019965,2]
[377839214,1754573141831,-186.48968365,0.00019965,2]
[377839215,1754573141852,-400.0,0.00019965,2]
[377839216,1754573141875,-1415.67,0.00019965,2]
[377839217,1754573141898,-400.0,0.00019965,2]
[377839218,1754573141919,-1039.31546254,0.00019965,2]
[377839219,1754573141941,-1550.91,0.00019965,2]
[377839220,1754573141964,-2118.08,0.00019965,2]
[377839221,1754573141986,-884.87,0.00019965,2]
[377839222,1754573142008,-400.0,0.00019965,2]
[377839223,1754573142030,-401.07099216,0.00019965,2]
[377839224,1754573142053,-1379.31,0.00019965,2]
[377839225,1754573142085,-1118.7,0.00019965,2]
[377839226,1754573142107,-400.0,0.00019965,2]
[377839227,1754573142131,-1777.82,0.00019965,2]
[377839228,1754573142153,-400.0,0.00019965,2]
[377839229,1754573142179,-400.0,0.00019965,2]
[377839230,1754573142213,-2314.95,0.00019965,2]
[377839231,1754573142251,-1613.07,0.00019965,2]
[377839232,1754573142274,-1187.6,0.00019965,2]
[377839233,1754573142296,-400.0,0.00019965,2]
[377839234,1754573142317,-270.41970379,0.00019965,2]
[377839235,1754573142338,-387.68810852,0.00019965,2]
[377839236,1754573142361,-182.34699287,0.00019965,2]
[377839237,1754573142383,-400.0,0.00019965,2]
[377839238,1754573142405,-195.41065158,0.00019965,2]
[377839239,1754573142426,-400.0,0.00019965,2]
[377839240,1754573142448,-400.0,0.00019965,2]
[377839241,1754573142471,-448.45,0.00019965,2]
[377839242,1754573142492,-182.89699831,0.00019965,2]
[377839243,1754573142515,-953.04,0.00019965,2]
[377839244,1754573142538,-1372.26,0.00019965,2]
[377839245,1754573142561,-400.0,0.00019965,2]
[377839246,1754573142582,-400.0,0.00019965,2]
[377839247,1754573142604,-1248.6,0.00019965,2]
[377839248,1754573142626,-1946.93,0.00019965,2]
[377839249,1754573142648,-530.0,0.00019965,2]
[377839250,1754573142670,-1683.09,0.00019965,2]
[377839251,1754573142691,-1678.43,0.00019965,2]
[377839252,1754573142713,-400.0,0.00019965,2]
[377839253,1754573142736,-1812.25,0.00019965,2]
[377839254,1754573142757,-400.0,0.00019965,2]
[377839255,1754573142784,-2747.97,0.00019965,2]
[377839256,1754573142806,-2798.17,0.00019965,2]
[377839257,1754573142828,-494.9,0.00019965,2]
[377839258,1754573142851,-1751.25,0.00019965,2]
[377839259,1754573142873,-1453.3,0.00019965,2]
[377839260,1754573142896,-400.0,0.00019965,2]
[377839261,1754573142920,-1881.75,0.00019965,2]
[377839262,1754573142943,-400.0,0.00019965,2]
[377839263,1754573142966,-1696.66,0.00019965,2]
[377839264,1754573142989,-1263.28,0.00019965,2]
[377839265,1754573143012,-400.0,0.00019965,2]
[377839266,1754573143035,-954.1,0.00019965,2]
[377839267,1754573143058,-400.0,0.00019965,2]
[377839268,1754573143081,-400.0,0.00019965,2]
[377839269,1754573143104,-518.26,0.00019965,2]
[377839270,1754573143129,-335.55028906,0.00019966,2]
[377839271,1754573143153,-400.0,0.00019966,2]
[377839272,1754573143175,-400.0,0.00019966,2]
[377839273,1754573143198,-300.0,0.00019966,2]
[377839274,1754573143221,-400.0,0.00019966,2]
[377839275,1754573143243,-400.0,0.00019966,2]
[377839276,1754573143266,-400.0,0.00019966,2]
[377839277,1754573143289,-400.0,0.00019966,2]
[377839278,1754573143313,-400.0,0.00019966,2]
[377839279,1754573143335,-400.0,0.00019966,2]
[377839280,1754573143359,-1861.6,0.00019966,2]
[377839281,1754573143381,-400.0,0.00019966,2]
[377839282,1754573143404,-400.0,0.00019966,2]
[377839283,1754573143427,-347.38778523,0.00019966,2]
[377839284,1754573143449,-400.0,0.00019966,2]
[377839285,1754573143474,-834.9,0.00019966,2]
[377839286,1754573143497,-400.0,0.00019966,2]
[377839287,1754573143520,-2712.01,0.00019966,2]
[377839288,1754573143543,-1031.56,0.00019966,2]
[377839289,1754573143566,-402.56074583,0.00019966,2]
[377839290,1754573143588,-400.0,0.00019966,2]
[377839291,1754573143610,-402.07982702,0.00019966,2]
[377839292,1754573143632,-400.0,0.00019966,2]
[377839293,1754573143829,-400.0,0.00019966,2]
[377839294,1754573143853,-896.69,0.00019966,2]
[377839295,1754573143877,-400.0,0.00019966,2]
[377839296,1754573143900,-400.0,0.00019966,2]
[377839297,1754573143923,-519.33,0.00019966,2]
[377839298,1754573143944,-400.0,0.00019966,2]
[377839299,1754573143966,-400.0,0.00019966,2]
[377839300,1754573143989,-414.58,0.00019966,2]
[377839301,1754573144011,-400.0,0.00019966,2]
[377839302,1754573144033,-496.75,0.00019966,2]
[377839303,1754573144055,-401.68332594,0.00019966,2]
[377839304,1754573144081,-400.0,0.00019966,2]
[377839305,1754573144105,-500.0,0.00019966,2]
[377839306,1754573144127,-400.0,0.00019966,2]
[377839307,1754573144150,-400.0,0.00019966,2]
[377839308,1754573144173,-901.64,0.00019966,2]
[377839309,1754573144194,-400.0,0.00019966,2]
[377839310,1754573144217,-401.63256126,0.00019966,2]
[377839311,1754573144241,-400.0,0.00019966,2]
[377839312,1754573144265,-438.0,0.00019966,2]
[377839313,1754573144288,-400.0,0.00019966,2]
[377839314,1754573144312,-1495.21,0.00019966,2]
[377839315,1754573144336,-474.62,0.00019966,2]
[377839316,1754573144360,-432.94,0.00019966,2]
[377839317,1754573144383,-400.15,0.00019966,2]
[377839318,1754573144405,-805.26,0.00019966,2]
[377839319,1754573144428,-400.0,0.00019966,2]
[377839320,1754573144452,-400.0,0.00019966,2]
[377839321,1754573144484,-2552.17,0.00019966,2]
[377839322,1754573144508,-400.0,0.00019966,2]
[377839323,1754573144530,-1561.14,0.00019966,2]
[377839324,1754573144553,-400.0,0.00019966,2]
[377839325,1754573144577,-400.0,0.00019966,2]
[377839326,1754573144600,-696.5,0.00019966,2]
[377839327,1754573144624,-1249.01,0.00019966,2]
[377839328,1754573144647,-1506.02,0.00019966,2]
[377839329,1754573144672,-9747.02,0.00019966,2]
[377839330,1754573144694,-401.28481548,0.00019966,2]
[377839331,1754573144716,-400.0,0.00019966,2]
[377839332,1754573144740,-1315.86,0.00019966,2]
[377839333,1754573144762,-400.0,0.00019966,2]
[377839334,1754573144784,-400.0,0.00019966,2]
[377839335,1754573144807,-501.98,0.00019966,2]
[377839336,1754573144830,-654.36,0.00019966,2]
[377839337,1754573144853,-400.0,0.00019966,2]
[377839338,1754573144877,-494.15,0.00019966,2]
[377839339,1754573144901,-400.0,0.00019966,2]
[377839340,1754573144924,-1429.94,0.00019966,2]
[377839341,1754573144948,-1890.6,0.00019966,2]
[377839342,1754573144972,-400.0,0.00019966,2]
[377839343,1754573144995,-400.0,0.00019966,2]
[377839344,1754573145019,-441.27653218,0.00019966,2]
[377839345,1754573145043,-1868.07,0.00019966,2]
[377839346,1754573145067,-400.0,0.00019966,2]
[377839347,1754573145091,-400.0,0.00019966,2]
[377839348,1754573145114,-714.02,0.00019966,2]
[377839349,1754573145138,-485.26,0.00019966,2]
[377839350,1754573145161,-421.37,0.00019966,2]
[377839351,1754573145185,-1286.43,0.00019966,2]
[377839352,1754573145207,-637.51,0.00019966,2]
[377839353,1754573145232,-400.0,0.00019966,2]
[377839354,1754573145255,-344.912757,0.00019966,2]
[377839355,1754573145280,-1268.82,0.00019966,2]
[377839356,1754573145303,-582.43,0.00019966,2]
[377839357,1754573145328,-2284.82,0.00019966,2]
[377839358,1754573145350,-574.88,0.00019966,2]
[377839359,1754573145373,-1185.99,0.00019966,2]
[377839360,1754573145397,-200.0,0.00019966,2]
[377839361,1754573145419,-400.0,0.00019966,2]
[377839362,1754573145443,-634.56,0.00019966,2]
[377839363,1754573145471,-1429.5,0.00019966,2]
[377839364,1754573145494,-533.6,0.00019966,2]
[377839365,1754573145518,-590.47,0.00019966,2]
[377839366,1754573145541,-471.32,0.00019966,2]
[377839367,1754573145564,-1679.13,0.00019966,2]
[377839368,1754573145588,-2626.62,0.00019966,2]
[377839369,1754573145611,-400.0,0.00019966,2]
[377839370,1754573145635,-400.0,0.00019966,2]
[377839371,1754573145657,-400.0,0.00019966,2]
[377839372,1754573145680,-1279.99,0.00019966,2]
[377839373,1754573145704,-435.33,0.00019966,2]
[377839374,1754573145727,-416.46,0.00019966,2]
[377839375,1754573145749,-400.0,0.00019966,2]
[377839376,1754573145772,-1709.0,0.00019966,2]
[377839377,1754573145796,-642.39,0.00019966,2]
[377839378,1754573145819,-400.0,0.00019966,2]
[377839379,1754573145842,-1113.61,0.00019966,2]
[377839380,1754573145864,-412.67,0.00019966,2]
[377839381,1754573145888,-1498.01,0.00019966,2]
[377839382,1754573145910,-400.0,0.00019966,2]
[377839383,1754573145932,-2541.79,0.00019966,2]
[377839384,1754573145954,-151.0,0.00019966,2]
[377839385,1754573145976,-400.0,0.00019966,2]
[377839386,1754573145997,-513.6,0.00019966,2]
[377839387,1754573146019,-560.94,0.00019966,2]
[377839388,1754573146041,-1439.25,0.00019966,2]
[377839389,1754573146063,-880.26,0.00019966,2]
[377839390,1754573146086,-1969.33,0.00019966,2]
[377839391,1754573146109,-621.83,0.00019966,2]
[377839392,1754573146133,-1756.44,0.00019966,2]
[377839393,1754573146156,-709.37,0.00019966,2]
[377839394,1754573146177,-400.0,0.00019966,2]
[377839395,1754573146199,-400.0,0.00019966,2]
[377839396,1754573146224,-400.0,0.00019966,2]
[377839397,1754573146246,-400.0,0.00019966,2]
[377839398,1754573146270,-400.0,0.00019966,2]
[377839399,1754573146293,-400.0,0.00019966,2]
[377839400,1754573146315,-646.78,0.00019966,2]
[377839401,1754573146338,-400.0,0.00019966,2]
[377839402,1754573146360,-400.0,0.00019966,2]
[377839403,1754573146385,-400.0,0.00019966,2]
[377839404,1754573146409,-1251.06,0.00019966,2]
[377839405,1754573146432,-1496.58,0.00019966,2]
[377839406,1754573146455,-400.0,0.00019966,2]
[377839407,1754573146782,-3643.35,0.00019966,2]
[377839408,1754573146888,-400.0,0.00019966,2]
[377839409,1754573146911,-1378.22,0.00019966,2]
[377839410,1754573146935,-400.0,0.00019966,2]
[377839411,1754573146958,-400.0,0.00019966,2]
[377839412,1754573146981,-400.0,0.00019966,2]
[377839413,1754573147003,-400.0,0.00019966,2]
[377839414,1754573147026,-727.35,0.00019966,2]
[377839415,1754573147048,-400.0,0.00019966,2]
[377839416,1754573147071,-443.47,0.00019966,2]
[377839417,1754573147097,-5225.26,0.00019966,2]
[377839418,1754573147119,-400.0,0.00019966,2]
[377839419,1754573147143,-1322.6,0.00019966,2]
[377839420,1754573147166,-737.81,0.00019966,2]
[377839421,1754573147190,-423.47,0.00019966,2]
[377839422,1754573147213,-1384.55,0.00019966,2]
[377839423,1754573147240,-1516.54,0.00019966,2]
[377839424,1754573147263,-925.3,0.00019966,2]
[377839425,1754573147287,-402.72,0.00019966,2]
[377839426,1754573147312,-400.0,0.00019966,2]
[377839427,1754573147336,-959.11,0.00019966,2]
[377839428,1754573147362,-400.0,0.00019966,2]
[377839429,1754573147385,-400.0,0.00019966,2]
[377839430,1754573147408,-1586.02,0.00019966,2]
[377839431,1754573147432,-151.0,0.00019966,2]
[377839432,1754573147456,-400.0,0.00019966,2]
[377839433,1754573147483,-620.49,0.00019966,2]
[377839434,1754573147507,-1146.49,0.00019966,2]
[377839435,1754573147532,-151.0,0.00019966,2]
[377839436,1754573147556,-153.083469,0.00019966,2]
[377839437,1754573147579,-400.0,0.00019966,2]
[377839438,1754573147602,-400.0,0.00019966,2]
[377839439,1754573147625,-667.74,0.00019966,2]
[377839440,1754573147649,-817.8,0.00019966,2]
[377839441,1754573147672,-2191.09,0.00019966,2]
[377839442,1754573147695,-400.0,0.00019966,2]
[377839443,1754573147717,-400.0,0.00019966,2]
[377839444,1754573147739,-1512.25,0.00019966,2]
[377839445,1754573147762,-400.0,0.00019966,2]
[377839446,1754573147785,-688.14,0.00019966,2]
[377839447,1754573147808,-578.97,0.00019966,2]
[377839448,1754573147831,-151.293439,0.00019966,2]
[377839449,1754573147854,-1590.55,0.00019966,2]
[377839450,1754573147877,-400.0,0.00019966,2]
[377839451,1754573147901,-151.0,0.00019966,2]
[377839452,1754573147925,-1118.9,0.00019966,2]
[377839453,1754573147949,-151.0,0.00019966,2]
[377839454,1754573147973,-400.0,0.00019966,2]
[377839455,1754573147997,-645.72,0.00019966,2]
[377839456,1754573148021,-400.0,0.00019966,2]